bitfinex-derivatives/quotes_ETHF0:USTF0_20251118
["timestamp","ask_amount","ask_price","bid_price","bid_amount"]
[1763436724131,3.2078,2982.3,2981.8,3.2078]
[1763436724438,3.2078,2982.5,2981.8,3.2078]
[1763436724740,4.0429,2982.0,2980.7,3.2078]
[1763436724936,3.2078,2981.4,2980.7,3.2078]
[1763436725338,4.05489143,2981.3,2980.6,3.2078]
[1763436725640,0.8351,2980.8,2978.9,3.2078]
[1763436725836,3.2078,2979.6,2979.3,0.00245333]
[1763436726032,3.2078,2979.9,2979.3,0.00430309]
[1763436726240,4.0429,2979.6,2978.3,3.2078]
[1763436726443,3.2078,2979.0,2978.3,3.2078]
[1763436726734,3.2078,2979.5,2978.6,3.2078]
[1763436726937,3.2078,2979.2,2978.8,0.00503575]
[1763436727337,2.31151515,2980.1,2978.8,0.00503575]
[1763436727338,1.15836863,2980.2,2978.9,3.75227]
[1763436727535,6.03867629,2980.8,2979.7,3.2078]
[1763436727536,0.84992962,2980.1,2979.7,3.2078]
[1763436727731,0.0026672,2980.8,2980.0,3.2078]
[1763436727929,0.0026672,2980.8,2980.3,3.2078]
[1763436728132,0.0026672,2980.8,2980.5,3.2078]
[1763436728346,0.0026672,2980.8,2980.4,0.00503575]
[1763436728737,3.2104672,2980.8,2980.4,0.00503575]
[1763436729434,1.15836863,2980.7,2980.4,0.00503575]
[1763436729630,3.2104672,2980.8,2980.4,0.00503575]
[1763436729836,0.0026672,2980.8,2980.4,0.00503575]
[1763436731037,0.0026672,2980.8,2977.2,0.7227]
[1763436731038,3.2078,2980.5,2979.3,3.2078]
[1763436731238,3.2078,2979.9,2979.3,3.2078]
[1763436731433,3.2078,2979.9,2977.7,3.2078]
[1763436731434,1.74457882,2979.4,2977.7,3.2078]
[1763436731630,3.2078,2978.5,2976.4,4.902]
[1763436731833,3.2078,2978.1,2977.4,3.2078]
[1763436732043,3.2078,2978.4,2977.4,3.2078]
[1763436732245,3.2078,2978.4,2977.7,3.2078]
[1763436732246,0.00503575,2978.2,2977.7,3.2078]
[1763436732541,0.00503575,2978.2,2978.0,3.2078]
[1763436732744,0.00771878,2978.2,2977.7,3.2078]
[1763436732933,0.00771878,2978.2,2978.0,3.2078]
[1763436733639,3.2078,2978.9,2978.0,3.2078]
[1763436734036,3.2078,2978.5,2977.7,3.2078]
[1763436734238,3.2078,2978.8,2978.1,3.2078]
[1763436734438,3.2078,2978.4,2977.6,0.00827425]
[1763436734647,4.0429,2978.4,2977.6,0.00827425]
[1763436735143,4.0429,2978.4,2977.5,3.2078]
[1763436735144,3.2078,2977.8,2976.5,3.2078]
[1763436735342,3.2078,2977.9,2976.8,3.2078]
[1763436735535,3.2078,2977.9,2977.1,3.2078]
[1763436735734,1.15095018,2978.3,2977.5,3.2078]
[1763436735735,3.2078,2978.3,2977.5,3.2078]
[1763436735940,0.00503575,2978.2,2977.6,0.00503575]
[1763436736243,0.00503575,2978.2,2977.9,3.2078]
[1763436736432,3.2078,2978.0,2977.6,0.00503575]
[1763436736639,0.8351,2977.2,2975.3,3.2078]
[1763436736840,3.2078,2976.4,2975.3,3.2078]
[1763436737147,3.2078,2976.4,2975.6,3.2078]
[1763436737442,3.2078,2976.0,2975.1,3.2078]
[1763436737638,3.2078,2975.4,2974.0,3.2078]
[1763436737839,3.2078,2975.4,2974.3,3.2078]
[1763436738233,3.2078,2975.7,2974.5,3.2078]
[1763436738440,3.2078,2975.4,2974.5,3.2078]
[1763436738743,3.2078,2974.7,2974.5,0.00240341]
[1763436740452,0.00503575,2975.8,2974.5,0.00240341]
[1763436740453,3.2078,2975.1,2974.5,0.00240341]
[1763436740748,3.2078,2975.1,2974.5,3.21020341]
[1763436740944,3.2078,2975.4,2974.5,3.21020341]
[1763436741334,3.2078,2975.0,2974.5,0.00240341]
[1763436741942,3.2078,2975.6,2974.5,3.21020341]
[1763436742147,0.00503575,2975.8,2974.5,0.00240341]
[1763436742148,3.2078,2975.2,2974.5,0.00240341]
[1763436742747,3.2078,2974.8,2974.5,0.00240341]
[1763436743046,3.2078,2975.5,2974.7,3.2078]
[1763436743249,0.00503575,2975.8,2975.1,3.2078]
[1763436743450,0.00503575,2975.8,2975.4,3.2078]
[1763436743748,3.21283575,2975.8,2974.7,3.2078]
[1763436743943,3.2078,2975.5,2974.7,3.2078]
[1763436744340,3.21283575,2975.8,2974.8,3.2078]
[1763436744543,3.2078,2975.5,2974.7,3.2078]
[1763436744741,3.2078,2975.2,2974.5,0.00240341]
[1763436745044,3.2078,2975.5,2974.5,0.00240341]
[1763436745348,3.2078,2975.5,2974.7,3.2078]
[1763436745943,3.2078,2975.4,2974.5,0.00240341]
[1763436746345,3.2078,2975.4,2974.7,3.2078]
[1763436746644,3.2078,2974.9,2974.5,0.00240341]
[1763436746951,3.2078,2974.6,2974.5,0.00240341]
[1763436747158,3.2078,2974.6,2973.5,3.2078]
[1763436747452,3.2078,2974.3,2973.5,3.2078]
[1763436747745,3.2078,2973.9,2972.9,3.2078]
[1763436747949,3.2078,2973.9,2972.3,3.2078]
[1763436748248,3.2078,2973.3,2972.6,3.2078]
[1763436749139,3.2078,2973.3,2971.2,0.79519361]
[1763436749140,3.2078,2973.0,2972.0,3.2078]
[1763436749354,0.00504473,2972.8,2972.0,3.2078]
[1763436750249,3.2078,2972.4,2971.6,3.2078]
[1763436750552,3.2078,2972.4,2971.2,0.79519361]
[1763436750553,3.2078,2972.4,2971.9,3.2078]
[1763436750749,3.2078,2972.4,2971.6,3.2078]
[1763436751049,3.2078,2972.7,2971.5,3.75362]
[1763436751254,3.2078,2972.7,2971.5,3.2078]
[1763436751446,3.2078,2972.5,2971.5,3.2078]
[1763436751948,0.00504473,2972.8,2971.5,3.2078]
[1763436751949,3.2078,2972.1,2971.5,3.2078]
[1763436752346,3.2078,2972.1,2970.0,3.93322306]
[1763436752347,3.2078,2971.8,2971.0,3.2078]
[1763436752546,2.95126779,2972.8,2970.0,0.987]
[1763436752547,3.2078,2971.1,2970.4,3.2078]
[1763436752851,0.00504473,2971.0,2970.4,3.2078]
[1763436753256,0.00504473,2971.0,2970.7,3.2078]
[1763436753444,3.2078,2971.5,2970.7,0.00256312]
[1763436753651,3.2078,2971.8,2971.0,0.54591]
[1763436753852,3.2078,2971.8,2970.8,0.54595]
[1763436754051,3.2078,2971.4,2970.7,0.00256312]
[1763436754258,3.2078,2971.1,2970.7,0.00256312]
[1763436754455,3.2103885,2971.1,2970.7,0.00256312]
[1763436754857,0.0025885,2971.1,2970.7,3.21036312]
[1763436755058,0.00504473,2971.2,2971.0,3.2078]
[1763436755259,0.00504473,2971.2,2970.8,0.54596]
[1763436755565,0.00504473,2971.2,2971.0,3.2078]
[1763436756057,0.00833888,2971.2,2971.1,3.2078]
[1763436756262,0.00833888,2971.2,2970.9,0.54593]
[1763436756451,3.2078,2972.2,2971.1,0.9322]
[1763436756651,3.2078,2972.1,2971.1,4.14]
[1763436757056,3.2078,2971.7,2970.8,3.2078]
[1763436757359,0.00504473,2971.5,2970.7,0.54853312]
[1763436757563,0.00504473,2971.5,2971.3,0.54586]
[1763436757864,0.00504473,2971.5,2970.7,0.00256312]
[1763436757865,0.00504473,2971.5,2971.0,0.54591]
[1763436758060,3.2078,2971.4,2970.8,3.2078]
[1763436758366,0.00504473,2971.5,2970.7,0.00256312]
[1763436758367,3.2078,2971.1,2970.7,0.00256312]
[1763436759667,3.2078,2970.8,2970.7,0.00256312]
[1763436762161,0.00504473,2971.5,2970.7,3.21036312]
[1763436762365,0.00504473,2971.5,2971.0,3.2078]
[1763436762570,0.00504473,2971.5,2971.0,0.9322]
[1763436762859,0.00504473,2971.5,2970.7,0.00256312]
[1763436763165,3.2078,2971.0,2970.7,0.00256312]
[1763436763367,3.2078,2971.3,2970.7,0.00256312]
[1763436763564,3.2078,2970.9,2970.7,0.00256312]
[1763436764257,3.2078,2970.9,2969.9,3.2078]
[1763436764468,3.2078,2970.5,2969.9,3.2078]
[1763436764674,3.2078,2970.9,2970.2,3.2078]
[1763436765268,0.00504473,2970.8,2970.3,0.00504473]
[1763436765464,0.00504473,2970.8,2970.3,0.55108473]
[1763436765664,0.00504473,2970.8,2970.6,3.75379]
[1763436765869,0.00504473,2970.8,2970.6,3.2078]
[1763436766079,0.00504473,2970.8,2970.3,3.21284473]
[1763436766283,0.00504473,2970.8,2970.3,3.75888473]
[1763436766481,0.00504473,2970.8,2970.3,3.21284473]
[1763436767182,0.00504473,2970.8,2970.3,0.00504473]
[1763436767579,0.00504473,2970.8,2970.6,0.54599]
[1763436767785,0.00504473,2970.8,2970.3,0.00504473]
[1763436767969,0.00504473,2970.8,2970.7,3.2078]
[1763436768173,0.00504473,2970.8,2970.3,0.00504473]
[1763436768583,0.00504473,2970.8,2970.5,3.2078]
[1763436769078,0.00504473,2970.8,2970.3,0.00504473]
[1763436769475,0.00504473,2970.8,2970.7,3.2078]
[1763436769877,0.00504473,2970.8,2970.4,3.2078]
[1763436770077,0.00504473,2970.8,2970.5,0.54601]
[1763436770277,0.00504473,2970.8,2970.7,3.2078]
[1763436770477,0.00352687,2971.7,2970.7,3.2078]
[1763436770478,0.00352687,2971.7,2971.0,0.9322]
[1763436770685,0.00352687,2971.7,2971.0,4.14]
[1763436770885,0.00352687,2971.7,2971.3,3.2078]
[1763436771278,0.00352687,2971.7,2971.0,0.9322]
[1763436771477,0.00504473,2971.6,2971.3,3.2078]
[1763436772582,3.21284473,2971.6,2971.0,0.9322]
[1763436772781,3.21284473,2971.6,2970.4,3.557]
[1763436772782,3.2078,2971.3,2970.4,6.7648]
[1763436772982,3.2078,2971.3,2970.4,3.2078]
[1763436773888,0.00504473,2971.6,2971.0,0.9322]
[1763436774278,0.00504473,2971.6,2971.3,0.54586]
[1763436774482,0.00504473,2971.6,2971.2,3.2078]
[1763436774684,3.2078,2971.5,2970.7,3.2078]
[1763436774878,0.00504473,2971.6,2971.0,3.2078]
[1763436775180,0.00504473,2971.6,2971.4,3.2078]
[1763436775391,0.00504473,2971.6,2970.3,0.00504473]
[1763436775392,0.00504473,2971.6,2970.9,3.2078]
[1763436775587,3.2078,2971.3,2970.6,3.2078]
[1763436776079,3.21284473,2971.6,2970.6,3.2078]
[1763436776284,0.81295593,2971.5,2970.9,3.2078]
[1763436776484,0.81295593,2971.5,2970.6,3.2078]
[1763436776687,3.2078,2971.3,2970.3,3.21284473]
[1763436776883,0.81295593,2971.2,2970.3,3.21284473]
[1763436777083,0.81295593,2971.2,2970.3,3.75889473]
[1763436777286,0.81295593,2971.2,2970.3,3.21284473]
[1763436777287,3.2078,2971.0,2970.3,3.21284473]
[1763436777485,0.81295593,2970.9,2970.3,3.21284473]
[1763436777687,3.2078,2970.4,2968.3,3.2078]
[1763436777986,5.42167503,2970.9,2968.0,0.9322]
[1763436777987,3.2078,2968.6,2968.0,0.9322]
[1763436778191,3.2078,2968.3,2968.0,0.9322]
[1763436778383,0.81295593,2968.2,2968.0,0.9322]
[1763436778585,0.81531734,2968.2,2968.0,0.93473252]
[1763436779281,0.00236141,2968.2,2968.0,0.93473252]
[1763436779489,0.81323204,2968.2,2968.0,0.93473252]
[1763436779790,0.00236141,2968.2,2968.0,0.93473252]
[1763436780489,4.36348187,2969.2,2968.1,3.2078]
[1763436780792,3.2078,2969.6,2968.9,3.2078]
[1763436780987,0.81164858,2969.5,2969.0,0.8407]
[1763436781183,3.2078,2969.9,2969.2,3.2078]
[1763436781393,3.2078,2969.9,2968.0,0.93473252]
[1763436781394,3.2078,2969.6,2968.4,0.54639]
[1763436781694,3.2078,2969.6,2968.0,0.93473252]
[1763436781695,3.2128534,2969.3,2968.7,0.0050534]
[1763436781994,3.2078,2969.0,2968.7,0.0050534]
[1763436782190,0.80750303,2968.9,2968.7,0.0050534]
[1763436782394,0.80691444,2968.8,2968.7,0.0050534]
[1763436782591,0.80691444,2968.9,2968.0,0.00253252]
[1763436782893,3.2078,2968.4,2968.0,0.00253252]
[1763436783104,0.80691444,2968.3,2968.0,0.00253252]
[1763436783290,0.80691444,2968.3,2965.1,2.38857641]
[1763436783291,3.2078,2967.7,2964.8,2.38857641]
[1763436783492,3.2078,2965.0,2964.0,4.0485]
[1763436783691,1.15090397,2966.4,2964.0,0.8407]
[1763436783893,0.83356497,2966.3,2964.4,4.35580654]
[1763436784090,3.2078,2965.3,2964.9,0.0050534]
[1763436784289,3.21149915,2965.3,2964.9,0.00890983]
[1763436784489,0.00369915,2965.3,2964.9,3.21670983]
[1763436784686,3.2078,2966.1,2965.2,0.8407]
[1763436784891,2.52176374,2968.0,2965.2,0.8407]
[1763436784892,3.2078,2966.4,2965.7,3.2078]
[1763436785094,3.2078,2966.4,2965.2,0.8407]
[1763436785095,3.2078,2966.2,2965.4,3.2078]
[1763436785791,0.0050534,2966.1,2965.5,0.0050534]
[1763436786186,3.2078,2965.7,2964.9,0.00385643]
[1763436786394,0.0050534,2966.1,2964.9,0.00385643]
[1763436786395,3.2078,2965.5,2964.9,0.00385643]
[1763436786791,3.2078,2965.5,2963.4,12.136]
[1763436786792,3.2078,2965.0,2962.2,3.2078]
[1763436786995,3.2078,2963.8,2962.5,3.2078]
[1763436787194,3.2078,2963.8,2962.8,1.38813]
[1763436787401,0.00506218,2963.4,2962.9,0.00506218]
[1763436787896,0.00821913,2963.4,2963.2,3.2078]
[1763436788104,3.2078,2963.3,2962.9,0.0084128]
[1763436788393,3.2078,2963.0,2962.9,0.0084128]
[1763436788590,3.2078,2963.0,2961.8,0.5476]
[1763436788591,3.2078,2963.0,2960.7,3.2078]
[1763436788791,3.2078,2962.2,2960.9,3.2078]
[1763436789092,0.00821913,2963.4,2960.5,3.2078]
[1763436789093,3.2078,2961.4,2960.5,3.2078]
[1763436789490,3.2078,2961.4,2960.6,3.2078]
[1763436789692,3.2078,2961.4,2960.5,0.00322424]
[1763436789693,0.00506218,2961.2,2960.5,0.00322424]
[1763436789993,0.00833323,2961.2,2960.5,0.00322424]
[1763436790195,2.72,2964.0,2960.5,0.00322424]
[1763436790196,3.2078,2962.2,2961.1,3.2078]
[1763436790387,3.2078,2962.2,2961.1,3.75554]
[1763436790593,0.8402,2961.4,2955.9,67.444]
[1763436790898,0.8402,2961.4,2955.6,6.34205591]
[1763436790899,3.2078,2959.4,2957.5,0.8407]
[1763436791196,3.52703414,2961.2,2958.8,0.8407]
[1763436791387,3.2078,2958.9,2958.8,0.8407]
[1763436791593,3.21016946,2958.9,2958.8,0.84500042]
[1763436792796,3.2078,2959.6,2958.9,9.3792]
[1763436792999,3.2078,2960.8,2959.5,3.2078]
[1763436793198,3.2078,2960.8,2960.1,0.8407]
[1763436793392,3.2078,2961.5,2960.6,3.2078]
[1763436793694,3.2078,2960.3,2958.9,7.95607447]
[1763436793886,3.2078,2959.3,2958.8,0.84500042]
[1763436794086,3.21163223,2959.3,2958.8,0.84500042]
[1763436794290,3.21163223,2959.3,2959.1,0.54812]
[1763436794499,0.00506218,2959.9,2959.1,3.2078]
[1763436794903,0.00506218,2959.9,2959.1,7.1343]
[1763436795087,0.00506218,2959.9,2959.5,3.2078]
[1763436795292,0.00506218,2959.9,2959.6,3.2078]
[1763436795487,0.00891168,2959.9,2959.6,3.2078]
[1763436795689,3.2078,2959.8,2958.8,0.0093626]
[1763436795993,3.2078,2959.2,2958.8,0.0093626]
[1763436796193,3.2078,2959.6,2958.8,0.0093626]
[1763436796401,3.2078,2959.0,2958.8,0.0093626]
[1763436797003,3.2078,2959.3,2958.9,6.0]
[1763436797202,3.2078,2959.3,2958.9,0.54815]
[1763436797402,3.2078,2959.3,2958.8,0.5575326]
[1763436797607,3.2078,2959.8,2959.1,3.2078]
[1763436797798,3.2078,2959.8,2958.8,0.8500626]
[1763436798006,3.2078,2959.8,2959.0,0.54812]
[1763436798199,3.2078,2959.8,2959.1,0.5481]
[1763436798399,3.2078,2959.8,2958.9,3.2078]
[1763436798595,0.00891168,2959.9,2959.6,0.54801]
[1763436798902,3.21671168,2959.9,2959.0,3.80379958]
[1763436799098,3.2078,2959.4,2958.8,0.0093626]
[1763436799298,0.00891168,2959.9,2958.8,0.0093626]
[1763436799299,3.2078,2959.8,2958.8,0.0093626]
[1763436799499,0.00891168,2959.9,2958.8,0.0093626]
[1763436799500,0.00891168,2959.9,2959.4,3.75585]
[1763436799898,0.00891168,2959.9,2959.4,3.2078]
[1763436800109,0.00891168,2959.9,2959.7,0.548]
[1763436800400,3.2078,2961.3,2959.8,6.89098816]
[1763436800601,3.2078,2962.0,2961.1,3.2078]
[1763436800809,12.164,2964.3,2962.0,0.54757]
[1763436800810,3.2078,2962.4,2962.0,0.54757]
[1763436801098,3.2078,2962.4,2962.1,0.54755]
[1763436801398,3.2101798,2962.4,2962.1,0.00403205]
[1763436801797,3.2101798,2962.4,2962.1,3.37923205]
[1763436802002,3.2101798,2962.4,2962.1,0.00403205]
[1763436802590,3.2101798,2962.4,2962.0,0.00506218]
[1763436802591,9.2101798,2962.4,2962.0,0.00506218]
[1763436802805,3.2078,2962.1,2960.9,0.54778]
[1763436803001,3.2078,2961.1,2960.4,5.857]
[1763436803703,3.2078,2961.1,2960.5,0.00506218]
[1763436803906,0.0023798,2962.4,2960.9,3.2078]
[1763436803907,3.2078,2961.7,2960.9,3.2078]
[1763436804108,3.2078,2962.0,2961.2,3.2078]
[1763436804502,3.2078,2962.0,2961.5,0.54765]
[1763436804702,3.2078,2962.0,2961.3,3.2078]
[1763436805202,3.2078,2962.0,2960.9,1.818]
[1763436805203,3.2078,2962.0,2961.1,0.54774]
[1763436805401,3.2078,2962.0,2961.1,3.2078]
[1763436805612,0.0023798,2962.4,2961.1,3.2078]
[1763436805613,3.2078,2961.7,2961.1,0.54774]
[1763436805795,3.2078,2961.7,2961.2,0.54772]
[1763436805995,3.2078,2962.3,2961.4,3.2078]
[1763436806203,3.2078,2962.3,2960.9,8.463]
[1763436806204,0.0023798,2962.4,2961.9,0.54759]
[1763436806399,3.2078,2962.0,2961.4,0.54768]
[1763436806604,3.2078,2962.0,2961.6,0.54764]
[1763436806805,3.2078,2962.0,2961.5,0.54766]
[1763436807002,3.2078,2962.3,2961.2,3.2078]
[1763436807207,3.2078,2962.3,2961.9,0.54759]
[1763436807698,3.2078,2962.3,2961.1,9.064]
[1763436807699,0.0023798,2962.4,2961.8,3.2078]
[1763436808204,3.2078,2962.0,2961.2,3.8237438]
[1763436808407,3.2078,2961.4,2960.1,3.2078]
[1763436808704,3.2078,2960.7,2960.1,3.2078]
[1763436808904,3.2078,2961.0,2960.3,0.54789]
[1763436809207,0.0023798,2962.4,2960.1,3.2078]
[1763436809208,0.00506218,2960.9,2960.1,3.2078]
[1763436809406,0.00506218,2960.9,2960.7,0.54781]
[1763436809599,0.00506218,2960.9,2960.7,3.75561]
[1763436809800,0.00506218,2960.9,2960.7,0.54781]
[1763436810702,0.00506218,2960.9,2960.8,3.2078]
[1763436810901,0.00506218,2960.9,2960.7,0.54781]
[1763436811099,0.00506218,2960.9,2960.5,0.00506218]
[1763436811303,3.2078,2960.7,2960.5,0.00506218]
[1763436812715,3.2078,2960.7,2959.5,0.54804]
[1763436812898,3.2078,2960.4,2960.0,0.54794]
[1763436813098,3.2078,2960.1,2959.6,3.61023075]
[1763436813294,3.2078,2959.7,2958.3,3.2078]
[1763436813502,3.2078,2959.4,2958.3,3.2078]
[1763436813701,3.2078,2959.4,2958.9,0.54814]
[1763436813902,0.00753934,2959.4,2959.1,3.75591]
[1763436814201,3.2078,2959.3,2959.0,0.54812]
[1763436814416,0.00753934,2959.4,2959.2,0.5481]
[1763436814597,0.00753934,2959.4,2958.9,0.00944382]
[1763436814598,0.00753934,2959.4,2959.1,0.54811]
[1763436814796,3.2078,2959.8,2959.0,3.2078]
[1763436815011,3.2078,2959.8,2959.3,0.54807]
[1763436815403,3.2078,2959.8,2959.0,3.2078]
[1763436815605,3.2078,2959.8,2959.0,6.5862]
[1763436815907,3.2078,2960.8,2960.6,0.54782]
[1763436816205,0.00506218,2961.0,2960.7,13.03773836]
[1763436816405,3.2078,2961.8,2961.4,0.54768]
[1763436816806,3.2078,2961.5,2961.4,0.00271571]
[1763436817306,0.00305467,2961.8,2961.4,0.00271571]
[1763436817307,0.00305467,2961.8,2961.6,0.54765]
[1763436817509,0.00506218,2961.7,2961.6,0.54765]
[1763436818308,3.2078,2962.2,2961.6,3.2078]
[1763436818500,3.2078,2962.2,2962.0,0.54757]
[1763436818697,3.2078,2962.2,2961.7,6.5838]
[1763436818698,3.2078,2962.5,2962.1,0.54756]
[1763436818904,3.2078,2962.5,2961.5,3.2078]
[1763436819105,3.2078,2962.5,2962.3,0.54751]
[1763436819505,3.21165004,2962.5,2962.3,0.54751]
[1763436819906,0.00385004,2962.5,2962.3,3.75531]
[1763436820112,0.00385004,2962.5,2962.3,0.54751]
[1763436820313,0.00385004,2962.5,2962.3,0.54752]
[1763436820623,0.00385004,2962.5,2962.4,3.3752]
[1763436820909,3.21165004,2962.5,2962.1,0.00506218]
[1763436821113,3.2078,2962.2,2962.1,0.00506218]
[1763436821414,0.00385004,2962.5,2962.1,0.00506218]
[1763436821415,3.21165004,2962.5,2962.1,0.55261218]
[1763436821616,3.21165004,2962.5,2962.2,0.54754]
[1763436822105,3.21165004,2962.5,2962.1,0.00506218]
[1763436822301,3.2078,2962.2,2962.1,0.00506218]
[1763436822613,3.2078,2962.2,2961.4,0.00271571]
[1763436822811,3.2078,2961.5,2961.4,0.00271571]
[1763436824002,3.2078,2961.8,2961.4,0.00271571]
[1763436824213,3.2078,2961.5,2961.4,0.00271571]
[1763436824417,0.00385004,2962.5,2961.4,0.00271571]
[1763436824418,3.2078,2962.1,2961.4,0.00271571]
[1763436824607,0.00385004,2962.5,2962.3,0.54751]
[1763436824808,0.00385004,2962.5,2962.3,7.13051]
[1763436825117,3.2078,2963.0,2962.9,0.54741]
[1763436825414,3.2078,2963.6,2963.2,0.54734]
[1763436825713,3.2078,2963.6,2961.4,0.00271571]
[1763436825714,3.2078,2963.3,2963.1,0.54737]
[1763436826103,3.2078,2963.3,2962.8,0.54743]
[1763436826316,3.2078,2962.9,2961.7,3.2078]
[1763436826512,0.00434501,2962.9,2962.6,0.00506218]
[1763436826714,0.00434501,2962.9,2962.7,0.54745]
[1763436827303,0.00434501,2962.9,2962.6,0.00506218]
[1763436827304,3.2078,2963.5,2963.3,0.54733]
[1763436827811,0.0346,2963.7,2963.5,0.54729]
[1763436828316,0.03883115,2963.7,2963.5,0.54988282]
[1763436829421,0.03883115,2963.7,2963.5,3.92348282]
[1763436829616,3.2078,2964.9,2964.3,0.54715]
[1763436829915,3.2078,2964.9,2963.7,3.2078]
[1763436829916,0.82408459,2964.8,2963.7,3.2078]
[1763436830109,3.2078,2963.8,2963.5,0.00259282]
[1763436830312,3.2078,2964.0,2963.5,0.00259282]
[1763436830622,3.2078,2963.8,2963.5,0.007655]
[1763436832415,0.00607584,2964.0,2963.5,3.762745]
[1763436832716,0.00607584,2964.0,2963.5,0.007655]
[1763436832924,0.00607584,2964.0,2963.6,0.54727]
[1763436833215,0.00607584,2964.0,2963.8,0.54724]
[1763436833812,0.00607584,2964.0,2963.5,0.007655]
[1763436834017,4.33027584,2964.0,2963.5,0.007655]
[1763436834218,0.00607584,2964.0,2963.5,0.007655]
[1763436834414,0.00607584,2964.0,2963.8,0.54724]
[1763436834813,0.00607584,2964.0,2963.9,3.2078]
[1763436835021,0.00607584,2964.0,2963.5,3.215455]
[1763436835220,0.00607584,2964.0,2963.7,0.54726]
[1763436835419,0.00607584,2964.0,2963.5,3.215455]
[1763436835623,4.33027584,2964.0,2963.5,0.007655]
[1763436836024,3.21387584,2964.0,2963.5,0.007655]
[1763436836410,3.21387584,2964.0,2963.6,0.54728]
[1763436836611,3.21387584,2964.0,2963.5,0.007655]
[1763436836811,0.00607584,2964.0,2963.8,0.54724]
[1763436837420,0.00607584,2964.0,2963.9,3.2078]
[1763436837618,0.00607584,2964.0,2963.8,3.75504]
[1763436838824,0.00607584,2964.0,2963.5,3.215455]
[1763436839121,0.00607584,2964.0,2963.9,3.2078]
[1763436840419,1.08827584,2964.0,2963.1,0.54737]
[1763436840617,0.00607584,2964.0,2963.6,3.2078]
[1763436840814,0.00607584,2964.0,2963.8,0.54725]
[1763436841015,0.00607584,2964.0,2963.5,3.2078]
[1763436841216,3.2078,2963.6,2962.4,3.2078]
[1763436841415,1.08827584,2964.0,2961.6,3.2078]
[1763436841416,3.2078,2962.6,2961.6,3.2078]
[1763436841616,3.2078,2961.8,2960.0,1.0492]
[1763436841818,3.2078,2960.8,2959.6,3.2078]
[1763436842019,3.2078,2960.0,2958.5,12.1558]
[1763436842224,3.2078,2960.4,2959.3,3.2078]
[1763436842414,0.00349601,2960.4,2959.8,3.2078]
[1763436842615,0.00349601,2960.4,2959.3,0.00438701]
[1763436842616,3.2078,2960.1,2959.3,0.00438701]
[1763436842819,3.2078,2960.1,2959.4,3.2078]
[1763436843017,3.2078,2960.1,2959.5,0.00506218]
[1763436843018,0.00506218,2960.0,2959.5,0.00506218]
[1763436843217,3.2078,2959.8,2959.5,0.00506218]
[1763436843735,3.2078,2959.9,2959.3,0.00438701]
[1763436844024,0.00506218,2960.0,2959.3,0.00438701]
[1763436844025,3.2078,2959.6,2959.3,0.00438701]
[1763436844518,6.0,2959.5,2959.2,0.00506218]
[1763436844712,3.2078,2959.3,2958.7,0.0337992]
[1763436845018,3.2078,2959.5,2958.7,0.0337992]
[1763436845215,3.2078,2959.5,2959.2,0.54808]
[1763436845415,3.2078,2959.9,2959.5,0.54803]
[1763436845619,3.2078,2959.9,2959.7,0.54799]
[1763436845816,3.2078,2959.9,2959.3,0.00506218]
[1763436846014,3.2078,2959.6,2959.3,0.00506218]
[1763436846215,3.2078,2959.6,2959.4,0.54805]
[1763436846419,3.2078,2959.9,2959.4,0.54805]
[1763436846618,3.2078,2959.9,2959.5,0.54803]
[1763436847021,3.2078,2959.9,2959.3,0.00506218]
[1763436847224,3.2078,2959.9,2959.7,0.54799]
[1763436847823,0.00349601,2960.4,2959.7,0.54799]
[1763436847824,3.2078,2960.6,2959.7,3.2078]
[1763436848127,3.2078,2960.9,2960.4,0.54786]
[1763436848326,3.2078,2961.2,2960.2,3.2078]
[1763436848527,3.2078,2961.2,2959.6,6.523]
[1763436848528,3.2078,2960.8,2959.8,7.1059811]
[1763436848720,3.2078,2960.5,2960.2,0.5479]
[1763436849028,0.00243274,2960.5,2960.4,0.54788]
[1763436849326,3.21023274,2960.5,2960.1,0.00506218]
[1763436849515,3.2078,2960.2,2960.1,0.00506218]
[1763436849714,3.2078,2960.3,2960.1,0.00506218]
[1763436849928,3.2078,2960.3,2960.1,0.55298218]
[1763436850127,0.00243274,2960.5,2960.1,0.00506218]
[1763436850428,0.00243274,2960.5,2960.1,0.55298218]
[1763436850725,3.2078,2960.3,2960.1,0.00506218]
[1763436851126,3.2078,2960.3,2960.1,0.55298218]
[1763436851326,3.2078,2960.3,2960.1,0.00506218]
[1763436851529,3.2078,2960.3,2960.1,0.55298218]
[1763436851825,0.00243274,2960.5,2960.4,0.54788]
[1763436852022,0.00243274,2960.5,2960.4,3.75568]
[1763436852224,3.2078,2961.2,2960.8,0.54779]
[1763436852521,3.2078,2961.2,2960.9,0.54777]
[1763436853031,3.2078,2961.2,2961.0,0.54776]
[1763436853324,3.21177026,2961.2,2960.1,0.00506218]
[1763436853532,3.2078,2960.3,2960.1,0.00506218]
[1763436854025,3.2078,2960.3,2959.2,0.00367239]
[1763436854026,6.0,2960.2,2959.3,3.2078]
[1763436854329,3.2078,2959.9,2959.3,3.2078]
[1763436854723,3.2078,2959.6,2958.3,3.2078]
[1763436854929,3.2078,2959.1,2958.3,3.75605]
[1763436855125,3.2078,2958.8,2958.0,3.2078]
[1763436855429,3.2078,2958.8,2956.5,2.99523293]
[1763436855430,3.2078,2958.2,2957.4,3.2078]
[1763436855732,3.2121491,2958.2,2957.7,0.54836]
[1763436855927,0.0043491,2958.2,2957.7,3.2078]
[1763436856126,3.2078,2958.6,2957.8,3.2078]
[1763436856326,3.2128709,2958.2,2957.7,0.0050709]
[1763436856528,3.2078,2957.9,2957.4,0.00422115]
[1763436856826,3.2128709,2958.2,2957.4,0.00422115]
[1763436857028,3.2078,2957.9,2957.4,0.00422115]
[1763436857229,3.2078,2957.7,2957.4,0.00422115]
[1763436857438,3.2078,2957.9,2957.4,3.21202115]
[1763436857623,3.2078,2957.9,2957.4,0.00422115]
[1763436858025,3.2078,2957.9,2957.4,0.00929205]
[1763436858222,0.00938361,2958.2,2957.9,0.54832]
[1763436858430,0.00938361,2958.2,2957.9,0.54834]